bitfinex-derivatives/quotes_BNBF0:USTF0_20250521
["timestamp","ask_amount","ask_price","bid_price","bid_amount"]
[1747826784923,3.80507004,655.36,654.3,0.5989631]
[1747826785124,3.80507004,655.36,654.29,0.30539017]
[1747826785321,3.80507004,655.36,654.3,0.59895319]
[1747826785517,3.80507004,655.36,654.12,0.27638077]
[1747826785718,3.80507004,655.36,654.13,0.90439646]
[1747826785922,3.80507004,655.36,654.14,0.90433917]
[1747826786122,3.80507004,655.36,654.15,2.07667717]
[1747826786319,3.80507004,655.36,654.16,0.90433917]
[1747826786522,3.80507004,655.36,654.17,2.07667717]
[1747826786722,3.80507004,655.36,654.18,0.90433917]
[1747826787019,3.80507004,655.36,654.19,2.07667717]
[1747826787221,3.80507004,655.36,654.2,0.90433917]
[1747826787417,3.80507004,655.36,654.21,2.07667717]
[1747826787618,3.80507004,655.36,654.22,0.30547744]
[1747826787824,3.80507004,655.36,654.23,1.172338]
[1747826788125,3.80507004,655.36,654.24,1.77107154]
[1747826788326,3.80507004,655.36,654.25,0.59873354]
[1747826788526,3.80507004,655.36,654.26,1.172338]
[1747826788722,3.80507004,655.37,654.27,1.77107154]
[1747826788927,3.80507004,655.37,654.28,0.59873354]
[1747826789126,3.80507004,655.37,654.29,0.59873354]
[1747826789327,3.80507004,655.37,654.3,0.59873354]
[1747826789522,3.80507004,655.37,654.31,0.59873354]
[1747826789827,3.80507004,655.37,654.32,0.59873354]
[1747826790126,3.80507004,655.37,654.33,0.59873354]
[1747826790325,3.80507004,655.37,654.26,0.30539017]
[1747826790525,3.80507004,655.37,654.27,0.59854112]
[1747826790825,3.80507004,655.37,654.26,0.30539017]
[1747826790826,3.80507004,655.37,654.28,0.59854112]
[1747826791025,3.80507004,655.37,654.29,0.59854112]
[1747826791225,3.80507004,655.37,654.3,0.59854112]
[1747826791427,3.80507004,655.37,654.31,0.59854112]
[1747826791627,3.80507004,655.37,654.32,0.59854112]
[1747826791827,3.80507004,655.37,654.26,0.30539017]
[1747826792122,3.80507004,655.37,654.27,0.59842499]
[1747826792326,3.80507004,655.37,654.28,0.59842499]
[1747826792527,3.80507004,655.37,654.29,0.59842499]
[1747826792723,3.80507004,655.37,654.3,0.59842499]
[1747826792923,3.80507004,655.37,654.31,0.59842499]
[1747826793127,3.80507004,655.37,654.26,0.30539017]
[1747826793329,3.80507004,655.37,654.27,0.59836476]
[1747826793530,3.80507004,655.37,654.28,0.59836476]
[1747826793828,3.80507004,655.37,654.29,0.59836476]
[1747826794029,3.80507004,655.37,654.3,0.59836476]
[1747826794329,3.80507004,655.37,654.31,0.90375493]
[1747826794530,3.80507004,655.37,654.31,0.30539017]
[1747826795423,3.80507004,655.37,654.16,0.30539017]
[1747826795624,3.80507004,655.37,654.17,2.07577444]
[1747826795828,3.80507004,655.37,654.18,0.90381568]
[1747826796023,3.80507004,655.37,654.19,0.5983313]
[1747826796227,3.80507004,655.37,654.2,0.5983313]
[1747826796724,3.80507004,655.37,654.21,0.90372147]
[1747826796925,3.80507004,655.37,654.22,0.5983313]
[1747826797529,3.80507004,655.37,654.23,0.30539017]
[1747826797730,3.80507004,655.37,654.24,0.5983313]
[1747826798226,3.80507004,655.37,654.25,0.59836371]
[1747826798430,3.80507004,655.37,654.26,0.59836371]
[1747826798631,3.80507004,655.37,654.25,0.30539017]
[1747826798632,3.80507004,655.37,654.27,0.59836371]
[1747826798830,3.80507004,655.37,654.25,0.30539017]
[1747826799129,3.80507004,655.37,654.26,0.5983624]
[1747826799324,3.80507004,655.37,654.27,0.5983624]
[1747826799528,3.80507004,655.37,654.25,0.30539017]
[1747826799730,3.80507004,655.37,654.27,0.30539017]
[1747826800831,3.80507004,655.37,654.09,0.30539017]
[1747826801032,3.80507004,655.37,654.1,0.90388826]
[1747826801232,3.80507004,655.37,654.11,2.07608548]
[1747826801434,3.80507004,655.37,654.12,0.90388826]
[1747826801633,3.80507004,655.37,654.13,2.07608548]
[1747826801931,3.80507004,655.37,654.14,0.90388826]
[1747826802132,3.80507004,655.37,654.15,2.07608548]
[1747826802327,3.80507004,655.37,654.16,0.90388826]
[1747826802531,3.80507004,655.37,654.17,0.90388826]
[1747826802731,3.80507004,655.37,654.18,0.90388826]
[1747826802932,3.80507004,655.37,654.19,0.59840184]
[1747826803134,3.80507004,655.37,654.2,0.59840184]
[1747826803432,3.80507004,655.37,654.21,0.59840184]
[1747826803632,3.80507004,655.37,654.22,1.77070567]
[1747826803831,3.80507004,655.37,654.23,0.59850845]
[1747826804232,3.80507004,655.37,654.24,0.59850845]
[1747826804433,3.80507004,655.37,654.25,0.59850845]
[1747826804635,3.80507004,655.37,654.26,0.59850845]
[1747826804833,3.80507004,655.37,654.27,0.59850845]
[1747826805035,3.80507004,655.37,654.28,0.59850845]
[1747826805232,3.80507004,655.37,654.21,0.30539017]
[1747826805436,3.80507004,655.37,654.22,0.59880575]
[1747826805735,3.80507004,655.37,654.23,0.59880575]
[1747826805935,3.80507004,655.37,653.95,0.36871373]
[1747826805936,0.26578784,655.44,654.24,0.59880575]
[1747826806136,0.26578784,655.44,654.25,0.59880575]
[1747826806340,5.32709806,655.61,654.25,0.59880575]
[1747826806836,5.32709806,655.61,654.26,0.59880575]
[1747826807032,5.32709806,655.61,654.27,0.59910608]
[1747826807233,5.32709806,655.61,654.28,0.90449625]
[1747826807536,5.32709806,655.61,654.29,0.59910608]
[1747826807737,0.26575942,655.6,654.29,0.59910608]
[1747826808938,0.26575942,655.6,654.3,0.30539017]
[1747826809340,5.32709806,655.61,654.3,0.30539017]
[1747826809741,0.2657787,655.6,654.3,0.30539017]
[1747826810340,0.2657787,655.6,654.31,0.59933728]
[1747826810540,0.2657787,655.6,654.09,0.30539017]
[1747826810840,0.2657787,655.6,654.1,0.9048383]
[1747826811039,0.2657787,655.6,654.11,0.9048383]
[1747826811240,0.2657787,655.6,654.12,0.9048383]
[1747826811438,0.2657787,655.6,654.13,0.9048383]
[1747826811639,0.2657787,655.6,654.14,2.07840606]
[1747826811840,0.2657787,655.6,654.15,2.07840606]
[1747826812040,0.2657787,655.6,654.16,2.07840606]
[1747826812241,0.2657787,655.6,654.17,0.9048383]
[1747826812442,5.32709806,655.61,654.18,2.07840254]
[1747826812637,5.32709806,655.61,654.19,0.90483478]
[1747826812838,0.26576957,655.59,654.2,0.90483478]
[1747826813039,0.26576957,655.59,654.21,0.90483478]
[1747826813343,0.26576957,655.59,654.22,1.77291788]
[1747826813540,0.26576957,655.59,654.23,0.59935012]
[1747826813742,0.26576957,655.59,654.24,1.17356776]
[1747826813945,0.26576957,655.59,654.25,0.59935012]
[1747826814146,0.26576957,655.59,654.26,0.59938851]
[1747826814345,0.26576957,655.59,654.27,0.59938851]
[1747826814545,0.26576957,655.59,654.28,0.59938851]
[1747826814741,0.26576957,655.59,654.29,0.59938851]
[1747826814945,0.26576957,655.59,654.3,0.59938851]
[1747826815146,0.26576957,655.59,654.31,0.59942042]
[1747826815349,5.32709806,655.61,654.22,0.30539017]
[1747826815541,0.26575536,655.58,654.32,0.30539017]
[1747826817948,0.26575536,655.58,654.13,0.30539017]
[1747826818149,0.26575536,655.58,654.14,0.90483317]
[1747826818349,5.32709806,655.61,654.15,2.07893468]
[1747826818549,5.32709806,655.61,654.16,0.90483317]
[1747826818749,0.26577261,655.57,654.17,2.07893468]
[1747826818942,0.26577261,655.57,654.18,0.90483317]
[1747826819146,0.26577261,655.57,654.19,2.07893468]
[1747826819354,0.26577261,655.57,654.2,1.21022334]
[1747826819548,0.26577261,655.57,654.21,2.07893468]
[1747826819752,0.26577261,655.57,654.22,0.59935058]
[1747826820045,0.26577261,655.57,654.23,1.77345209]
[1747826820250,0.26577261,655.57,654.24,0.59935058]
[1747826820451,0.26577261,655.57,654.25,0.59935058]
[1747826820652,0.26577261,655.57,654.26,0.59935058]
[1747826820952,0.26577261,655.57,654.27,0.59935058]
[1747826821152,0.26577261,655.57,654.28,0.59935058]
[1747826821355,3.80507004,655.59,654.29,0.59935058]
[1747826821546,3.80507004,655.59,654.3,0.59935058]
[1747826821752,3.80507004,655.59,654.31,0.59935058]
[1747826821951,3.80507004,655.59,654.24,0.30539017]
[1747826822152,3.80507004,655.59,654.25,0.59933257]
[1747826822348,3.80507004,655.59,654.26,0.59933257]
[1747826822554,3.80507004,655.59,654.27,0.59934335]
[1747826822755,0.26576348,655.58,654.09,0.30539017]
[1747826823054,0.26576348,655.58,654.1,0.90481876]
[1747826823254,0.26576348,655.58,654.11,0.90481876]
[1747826823456,0.26576348,655.58,654.12,0.90481876]
[1747826823655,0.26576348,655.58,654.11,1.1743617]
[1747826823656,0.26576348,655.58,654.13,0.90481876]
[1747826823856,0.26576348,655.58,654.14,0.90481876]
[1747826824051,0.26576348,655.58,654.15,0.90481876]
[1747826824248,0.26576348,655.58,654.13,1.1743617]
[1747826824451,3.80507004,655.59,654.14,0.90481705]
[1747826824652,3.80507004,655.59,654.15,0.90481705]
[1747826824851,3.80507004,655.59,654.16,2.07917875]
[1747826825054,3.80507004,655.59,654.17,0.90481705]
[1747826825355,3.80507004,655.59,654.18,2.07917875]
[1747826825556,0.2657716,655.58,654.19,0.59933254]
[1747826825858,0.2657716,655.58,654.2,1.47975187]
[1747826826057,0.2657716,655.58,654.21,0.59933254]
[1747826826760,0.2657716,655.58,654.22,1.1743617]
[1747826827059,0.2657716,655.58,654.23,0.90472271]
[1747826827261,0.2657716,655.58,654.24,0.59941746]
[1747826827460,0.2657716,655.58,654.25,0.59941746]
[1747826827761,0.2657716,655.58,654.26,0.59941746]
[1747826827963,0.2657716,655.58,654.27,0.59945536]
[1747826828263,0.2657716,655.58,654.28,0.59945536]
[1747826828460,0.2657716,655.58,654.29,0.59945536]
[1747826828964,0.2657716,655.58,654.28,0.30539017]
[1747826829562,0.2657716,655.58,654.29,0.59955551]
[1747826829764,0.2657716,655.58,654.11,0.30539017]
[1747826829962,0.2657716,655.58,654.12,2.07987123]
[1747826830161,0.2657716,655.58,654.13,0.90504339]
[1747826830364,3.80507004,655.59,654.14,0.90504339]
[1747826830664,3.80507004,655.59,654.15,2.07987123]
[1747826830864,3.80507004,655.59,654.16,0.90504339]
[1747826831072,3.80507004,655.59,654.17,2.07987123]
[1747826831364,3.80507004,655.59,654.18,0.9050425]
[1747826831562,3.80507004,655.59,654.19,2.07987034]
[1747826831763,0.2657716,655.58,654.2,0.9050425]
[1747826831961,3.80507004,655.59,654.21,0.9050425]
[1747826832163,3.80507004,655.59,654.22,2.07987034]
[1747826832363,3.80507004,655.59,654.23,1.21043267]
[1747826832658,3.80507004,655.59,654.24,2.07987034]
[1747826832864,3.80507004,655.59,654.25,0.9050425]
[1747826833062,3.80507004,655.59,654.26,0.9050425]
[1747826833262,3.80507004,655.59,654.27,0.90286262]
[1747826833458,3.80507004,655.59,654.28,2.07769046]
[1747826833664,3.80507004,655.59,654.29,0.90286262]
[1747826833963,3.80507004,655.59,654.3,0.90286262]
[1747826834165,3.80507004,655.59,654.31,2.07769046]
[1747826834360,0.26567218,655.9,654.37,0.27638077]
[1747826834565,0.26567218,655.9,654.38,0.90286262]
[1747826834766,0.26567218,655.9,654.39,2.07769046]
[1747826835064,0.26567218,655.9,654.4,0.90286262]
[1747826835266,0.26567218,655.9,654.41,0.90286262]
[1747826835463,0.26567218,655.9,654.42,2.07769046]
[1747826835661,0.26567218,655.9,654.43,1.20825279]
[1747826835858,0.26567218,655.9,654.44,0.90286262]
[1747826836063,0.26567218,655.9,654.45,1.77240155]
[1747826836263,0.26567218,655.9,654.46,0.59757371]
[1747826836563,3.80507004,656.38,654.46,0.59757371]
[1747826836564,3.80507004,656.38,654.47,0.59757371]
[1747826836762,3.80507004,656.38,654.48,1.77240155]
[1747826836961,3.80507004,656.38,654.49,0.59757371]
[1747826837165,3.80507004,656.38,654.5,0.59757371]
[1747826837366,3.80507004,656.38,654.51,0.59757371]
[1747826837566,0.26557283,656.37,654.52,0.59757371]
[1747826837761,0.26557283,656.37,654.48,0.30539017]
[1747826837963,0.26557283,656.37,654.49,0.59622537]
[1747826838161,0.26557283,656.37,654.5,0.59622537]
[1747826838361,0.26557283,656.37,654.51,0.59603734]
[1747826838669,0.26557283,656.37,654.52,0.30539017]
[1747826839366,3.80507004,656.38,654.52,0.30539017]
[1747826839566,3.80507004,656.38,654.53,0.30539017]
[1747826840462,0.2656083,656.37,654.53,0.30539017]
[1747826840667,0.2656083,656.37,654.54,0.30539017]
[1747826842166,0.2656083,656.37,654.55,0.30539017]
[1747826842366,3.80507004,656.38,654.55,0.30539017]
[1747826843462,3.80507004,656.38,654.56,0.30539017]
[1747826843668,0.26560324,656.37,654.56,0.30539017]
[1747826845269,0.26560324,656.37,654.57,0.30539017]
[1747826846470,0.26560324,656.37,654.25,0.27638077]
[1747826846770,0.26560324,656.37,654.26,2.06544239]
[1747826846965,0.26560324,656.37,654.27,0.90035593]
[1747826847272,0.26560324,656.37,654.28,2.06544023]
[1747826847564,3.80507004,656.11,654.32,0.27638077]
[1747826847769,3.80507004,656.11,654.33,0.90035377]
[1747826847968,3.80507004,656.11,654.34,0.90035377]
[1747826848163,3.80507004,656.11,654.35,2.06544023]
[1747826848368,3.80507004,656.11,654.36,0.90035377]
[1747826848564,0.26560932,656.1,654.37,2.06544023]
[1747826848769,0.26560932,656.1,654.38,0.90035377]
[1747826849069,0.26560932,656.1,654.39,2.0652412]
[1747826849269,0.26560932,656.1,654.4,0.90015474]
[1747826849468,0.26560932,656.1,654.41,2.0652412]
[1747826849670,0.26560932,656.1,654.42,0.90015474]
[1747826849871,0.26560932,656.1,654.43,0.90015474]
[1747826850070,0.26560932,656.1,654.44,2.0652412]
[1747826850273,0.26560932,656.1,654.45,0.59484242]
[1747826850472,0.26560932,656.1,654.46,2.06523955]
[1747826850674,0.26560932,656.1,654.47,0.59484242]
[1747826850972,0.26560932,656.1,654.48,1.75992888]
[1747826851173,0.26560932,656.1,654.49,0.59484242]
[1747826851474,3.80507004,656.11,654.5,0.59484242]
[1747826851774,3.80507004,656.11,654.47,0.30531199]
[1747826851974,3.80507004,656.11,654.48,0.59458086]
[1747826852174,3.80507004,656.11,654.49,0.59458086]
[1747826852474,3.80507004,656.11,654.5,0.30531199]
[1747826852675,0.26559513,656.1,654.5,0.30531199]
[1747826853775,0.26559513,656.1,654.34,0.30531199]
[1747826853972,0.26559513,656.1,654.35,2.06292979]
[1747826854172,0.26559513,656.1,654.36,0.89971331]
[1747826854375,3.80507004,656.11,654.37,0.89971331]
[1747826854570,3.80507004,656.11,654.38,0.89971331]
[1747826854773,3.80507004,656.11,654.39,1.4684678]
[1747826855072,3.80507004,656.11,654.4,0.89945587]
[1747826855375,3.80507004,656.11,654.41,2.06264419]
[1747826855575,3.80507004,656.11,654.42,0.89945587]
[1747826855777,0.26559006,656.1,654.43,0.89945587]
[1747826855969,0.26559006,656.1,654.44,2.06264419]
[1747826856172,0.26559006,656.1,654.45,0.89945587]
[1747826856371,0.26559006,656.1,654.46,0.89945587]
[1747826856572,0.26559006,656.1,654.47,0.89945587]
[1747826856772,0.26559006,656.1,654.48,2.06264419]
[1747826856970,0.26559006,656.1,654.49,0.89945587]
[1747826857178,0.26559006,656.1,654.5,0.89945587]
[1747826857374,3.80507004,656.11,654.51,0.89945587]
[1747826857575,3.80507004,656.11,654.52,0.89945587]
[1747826857870,3.80507004,656.11,654.53,0.59417639]
[1747826858072,3.80507004,656.11,654.54,1.75736471]
[1747826858375,3.80507004,656.11,654.55,1.75736471]
[1747826858571,3.80507004,656.11,654.56,0.59417639]
[1747826858777,0.26557587,656.1,654.57,1.75736471]
[1747826858976,0.26557587,656.1,654.57,1.16318832]
[1747826859174,0.26557587,656.1,654.34,0.30531199]
[1747826859377,0.26557587,656.1,654.35,0.89903236]
[1747826859578,0.26557587,656.1,654.36,0.89902444]
[1747826859778,0.26557587,656.1,654.37,2.06051396]
[1747826859981,0.26557587,656.1,654.38,0.89902444]
[1747826860179,0.26557587,656.1,654.37,1.16148952]
[1747826860180,0.26557587,656.1,654.39,0.89902444]
[1747826860382,3.80507004,656.11,654.4,0.89902444]
[1747826860581,0.26559209,656.09,654.41,0.89902444]
[1747826860781,0.26559209,656.09,654.42,2.06051396]
[1747826860981,0.26559209,656.09,654.43,0.89902444]
[1747826861176,0.26559209,656.09,654.44,0.89902444]
[1747826861379,0.26559209,656.09,654.45,0.89901731]
[1747826861577,0.26559209,656.09,654.46,2.06050683]
[1747826861779,0.26559209,656.09,654.47,0.89901731]
[1747826862078,0.26559209,656.09,654.48,0.89901731]
[1747826862279,0.26559209,656.09,654.49,0.89901731]
[1747826862478,0.26559209,656.09,654.5,0.89901731]
[1747826862681,0.26559209,656.09,654.51,2.06050683]
[1747826862980,0.26559209,656.09,654.52,1.2043293]
[1747826863181,0.26559209,656.09,654.53,0.89901731]
[1747826863381,0.26559209,656.09,654.54,0.89901731]
[1747826863577,0.26559209,656.09,654.55,0.89901731]
[1747826863785,0.26559209,656.09,654.56,0.59375913]
[1747826863982,0.26559209,656.09,654.52,1.46680151]
[1747826863983,0.26559209,656.09,654.57,1.75524865]
[1747826864277,0.26559209,656.09,654.57,1.16148952]
[1747826864479,0.26559209,656.09,654.58,1.46680151]
[1747826864677,0.26559209,656.09,654.58,0.30531199]
[1747826865783,0.26559209,656.09,654.59,0.30531199]
[1747826866384,3.80507004,656.5,654.59,0.30531199]
[1747826867084,3.80507004,656.5,654.6,0.30531199]
[1747826867784,0.26554547,656.49,654.6,0.30531199]
[1747826868182,0.26554547,656.49,654.61,0.30531199]
[1747826869381,3.80507004,656.5,654.61,0.30531199]
[1747826869581,3.80507004,656.5,654.62,0.30531199]
[1747826870386,3.80507004,656.5,654.63,0.30531199]
[1747826870580,0.26554547,656.49,654.63,0.30531199]
[1747826872088,0.26554547,656.49,654.64,0.30531199]
[1747826873988,0.26554547,656.49,654.42,0.27638077]
[1747826874188,0.26554547,656.49,654.43,2.05861254]
[1747826874387,0.26554547,656.49,654.44,0.89868104]
[1747826874587,0.26554547,656.49,654.45,2.05861254]
[1747826874785,0.26554547,656.49,654.46,0.89868104]
[1747826874989,0.26554547,656.49,654.47,0.89868104]
[1747826875284,3.80507004,656.5,654.48,2.05861254]
[1747826875484,3.80507004,656.5,654.49,0.89878349]
[1747826875688,3.80507004,656.5,654.5,2.05871499]
[1747826875886,3.80507004,656.5,654.51,0.89878349]
[1747826876082,3.80507004,656.5,654.52,0.89878349]
[1747826876288,3.80507004,656.5,654.53,1.20403442]
[1747826876486,3.80507004,656.5,654.54,2.05871499]
[1747826876684,0.26553636,656.49,654.55,0.89878349]
[1747826876888,0.26553636,656.49,654.56,1.75346399]
[1747826877088,0.26553636,656.49,654.57,0.59353249]
[1747826877387,0.26553636,656.49,654.58,1.75354579]
[1747826877588,0.26553636,656.49,654.59,0.59361429]
[1747826877787,3.80507004,656.24,654.59,0.89886522]
[1747826877983,3.80507004,656.24,654.59,0.30525093]
[1747826878690,0.26557283,656.23,654.59,0.30525093]
[1747826879090,0.26557283,656.23,654.43,0.30525093]
[1747826879290,0.26557283,656.23,654.44,0.89906552]
[1747826879491,0.26557283,656.23,654.45,0.89906552]
[1747826879692,0.26557283,656.23,654.46,0.89906552]
[1747826879889,0.26557283,656.23,654.47,0.89906552]
[1747826880189,0.26557283,656.23,654.48,0.89906552]
[1747826880394,0.26557283,656.23,654.49,2.06121565]
[1747826880589,0.26557283,656.23,654.5,0.89906552]
[1747826880790,0.26557283,656.23,654.51,2.06121565]
[1747826880985,0.26557283,656.23,654.52,0.89906552]
[1747826881187,0.26557283,656.23,654.53,1.20431645]
[1747826881387,0.26557283,656.23,654.54,2.06121565]
[1747826881592,0.26557283,656.23,654.55,0.89906552]
[1747826881793,0.26557283,656.23,654.56,0.59381278]
[1747826881996,0.26557283,656.23,654.57,0.59388763]
[1747826882192,0.26557283,656.23,654.58,0.59388763]
[1747826882389,0.26557283,656.23,654.53,0.30525093]
[1747826882592,0.26557283,656.23,654.54,0.59415049]
[1747826882791,0.26557283,656.23,654.55,0.59415049]
[1747826882988,0.26557283,656.23,654.56,0.59415049]
[1747826883187,0.26557283,656.23,654.53,0.30525093]
[1747826883388,0.26557283,656.23,654.57,0.30525093]
[1747826884793,0.26557283,656.23,654.36,0.30525093]
[1747826884992,0.26557283,656.23,654.37,0.89974964]
[1747826885196,0.26557283,656.23,654.38,2.06336432]
[1747826885389,0.26557283,656.23,654.39,0.89974964]
[1747826885588,0.26557283,656.23,654.4,2.06336432]
[1747826885790,0.26557283,656.23,654.41,0.89974964]
[1747826885989,0.26557283,656.23,654.42,0.89974964]
[1747826886189,0.26557283,656.23,654.43,0.89974964]
[1747826886395,0.26557283,656.23,654.44,2.06336432]
[1747826886594,0.26557283,656.23,654.45,0.89974964]
[1747826886796,0.26557283,656.23,654.46,2.06336432]
[1747826887091,0.26557283,656.23,654.47,0.5944714]
[1747826887295,0.26557283,656.23,654.48,1.77414398]
[1747826887490,3.80507004,656.24,654.49,0.89974977]
[1747826887691,3.80507004,656.24,654.5,0.89974977]
[1747826887894,3.80507004,656.24,654.51,2.06336445]
[1747826888190,3.80507004,656.24,654.52,2.06336489]
[1747826888394,3.80507004,656.24,654.53,0.89975021]
[1747826888590,0.26557081,656.23,654.54,0.5944714]
[1747826888997,0.26557081,656.23,654.55,1.16361468]
[1747826889198,0.26557081,656.23,654.56,0.5944714]
[1747826889598,0.26557081,656.23,654.57,1.16361468]
[1747826889800,0.26557081,656.23,654.58,0.5944714]
[1747826890098,0.26557081,656.23,654.58,0.89972233]
[1747826890299,0.26557081,656.23,654.59,0.5944714]
[1747826890500,3.80507004,656.24,654.6,1.16361468]
[1747826890798,3.80507004,656.24,654.61,0.5944714]
[1747826890995,3.80507004,656.24,654.62,1.16361468]
[1747826891298,3.80507004,656.24,654.63,0.5944714]
[1747826891496,3.80507004,656.24,654.64,1.16361468]
[1747826891699,0.26556067,656.23,654.65,0.5944714]
[1747826892195,0.26556067,656.23,654.66,1.16361468]
[1747826892399,0.26556067,656.23,654.67,0.5944714]
[1747826892802,0.26556067,656.23,654.68,1.16361468]
[1747826892995,0.26556067,656.23,654.69,0.5944714]
[1747826893398,3.80507004,656.33,654.69,0.5944714]
[1747826894001,3.80507004,656.33,654.7,0.30525093]
[1747826894195,3.80507004,656.33,654.71,0.5944714]
[1747826894601,0.26554446,656.32,654.71,0.5944714]
[1747826895597,0.26554446,656.32,654.72,0.30525093]
[1747826895801,0.26554446,656.32,654.73,0.5944714]
[1747826896401,3.80507004,656.33,654.73,0.5944714]
[1747826897002,3.80507004,656.33,654.74,0.30525093]
[1747826897203,3.80507004,656.33,654.75,0.59726031]
[1747826897401,3.80507004,656.33,654.74,0.30525093]
[1747826897598,0.26552623,656.32,654.75,0.59727266]
[1747826897901,0.26552623,656.32,654.74,0.30525093]
[1747826898203,0.26552623,656.32,654.75,0.59726542]
[1747826898396,0.26552623,656.32,654.44,0.30525093]
[1747826898596,0.26552623,656.32,654.45,0.90261102]
[1747826898798,0.26552623,656.32,654.46,2.07258917]
[1747826899098,0.26552623,656.32,654.47,0.90261102]
[1747826899301,0.26552623,656.32,654.48,2.07258917]
[1747826899497,3.80507004,656.33,654.49,0.90267769]
[1747826899698,3.80507004,656.33,654.5,0.90267769]
[1747826899897,3.80507004,656.33,654.51,0.90267769]
[1747826900204,3.80507004,656.33,654.52,2.07265584]
[1747826900405,3.80507004,656.33,654.53,0.90267769]
[1747826900705,3.80507004,656.33,654.52,1.16997815]
[1747826900706,0.26554953,656.32,654.54,2.07265584]
[1747826900904,0.26554953,656.32,654.55,0.90267769]
[1747826901204,0.26554953,656.32,654.49,0.27638077]
[1747826901205,0.26554953,656.32,654.56,2.37802415]
[1747826901399,0.26554953,656.32,654.57,0.90279507]
[1747826901600,0.26554953,656.32,654.58,0.90279507]
[1747826901803,0.26554953,656.32,654.59,0.90279507]
[1747826901999,0.26554953,656.32,654.6,2.07277322]
[1747826902307,0.26554953,656.32,654.61,2.07279235]
[1747826902502,3.80507004,656.33,654.62,0.9028142]
[1747826902700,3.80507004,656.33,654.63,0.9028142]
[1747826902903,3.80507004,656.33,654.64,2.07279235]
[1747826903102,3.80507004,656.33,654.65,0.59760263]
[1747826903305,3.80507004,656.33,654.66,0.59760263]
[1747826903501,3.80507004,656.33,654.67,0.59760263]
[1747826903706,0.26553636,656.32,654.68,1.16997815]
[1747826903902,0.26553636,656.32,654.69,0.59760263]
[1747826904308,0.26553636,656.32,654.7,0.59760263]
[1747826904508,0.26553636,656.32,654.71,0.59760263]
[1747826904808,0.26553636,656.32,654.72,0.59770915]
[1747826905010,0.26553636,656.32,654.73,0.59770915]
[1747826905207,0.26553636,656.32,654.74,0.59770915]
[1747826905408,3.80507004,656.33,654.72,0.30525093]
[1747826905606,3.80507004,656.33,654.73,0.59767918]
[1747826905806,3.80507004,656.33,654.74,0.59767918]
[1747826906008,3.80507004,656.33,654.75,0.59766434]
[1747826906207,3.80507004,656.07,654.75,0.30525093]
[1747826907512,3.80507004,656.07,654.52,0.30525093]
[1747826907710,3.80507004,656.07,654.53,0.90318713]
[1747826907907,3.80507004,656.07,654.52,0.30525093]
[1747826907908,3.80507004,656.07,654.54,0.90318713]
[1747826908105,3.80507004,656.07,654.55,2.07394132]
[1747826908309,3.80507004,656.07,654.56,0.90318729]
[1747826908508,3.80507004,656.07,654.57,0.90318729]
[1747826908714,3.80507004,656.07,654.58,0.90318729]
[1747826908907,3.80507004,656.07,654.59,0.90318729]
[1747826909110,3.80507004,656.07,654.6,0.90318729]
[1747826909307,3.80507004,656.07,654.61,2.07394148]
[1747826909510,3.80507004,656.07,654.62,0.90318729]
[1747826909707,0.26556777,656.06,654.63,0.90318729]
[1747826909910,0.26556777,656.06,654.62,1.17075419]
[1747826909911,0.26556777,656.06,654.64,0.90318729]
[1747826910106,0.26556777,656.06,654.65,0.90318729]
[1747826910306,0.26556777,656.06,654.66,2.07394148]
[1747826910506,0.26556777,656.06,654.67,0.59791242]
[1747826910912,0.26556777,656.06,654.68,1.17075419]
[1747826911111,0.26556777,656.06,654.69,0.59791242]
[1747826911407,3.80507004,656.07,654.7,1.17075419]
[1747826911713,0.26555865,656.05,654.71,0.59791242]
[1747826912412,0.26555865,656.05,654.72,1.17075419]
[1747826912611,0.26555865,656.05,654.73,0.59791242]
[1747826913014,0.26555865,656.05,654.74,0.59791242]
[1747826913313,0.26555865,656.05,654.75,0.90316335]
[1747826913513,0.26555865,656.05,654.76,0.59791242]
[1747826913707,0.26555865,656.05,654.77,0.59833553]
[1747826913906,0.26555865,656.05,654.78,0.59833553]
[1747826914107,0.26555865,656.05,654.75,0.30525093]
[1747826914312,0.26555865,656.05,654.76,0.59833688]
[1747826914612,3.80507004,656.07,654.77,0.59833688]
[1747826914813,3.80507004,656.07,654.78,0.59833688]
[1747826915112,3.80507004,656.07,654.56,0.27638077]
[1747826915313,3.80507004,656.07,654.57,0.90360699]
[1747826915513,3.80507004,656.07,654.58,0.90360699]
[1747826915711,0.26557587,656.06,654.59,0.90360699]
[1747826916014,0.26557587,656.06,654.6,0.90360699]
[1747826916214,0.26557587,656.06,654.61,0.90360699]
[1747826916509,0.26557587,656.06,654.62,0.90360699]
[1747826916711,0.26557587,656.06,654.63,0.90360699]
[1747826916909,0.26557587,656.06,654.64,0.90360699]
[1747826917216,0.26557587,656.06,654.65,0.90372478]
[1747826917412,0.26557587,656.06,654.66,0.90372478]
[1747826917612,3.80507004,656.07,654.67,0.90372478]
[1747826917812,3.80507004,656.07,654.68,2.07544176]
[1747826918010,3.80507004,656.07,654.69,0.59845144]
[1747826918316,3.80507004,656.07,654.7,1.17171698]
[1747826918517,3.80507004,656.07,654.71,0.59845144]
[1747826918817,0.26555865,656.06,654.71,0.59845144]
[1747826919017,0.26555865,656.06,654.72,1.17171698]
[1747826919315,0.26555865,656.06,654.73,0.90370237]